bitfinex-derivatives/quotes_SOLF0:USTF0_20250419
["timestamp","ask_amount","ask_price","bid_price","bid_amount"]
[1745079518464,26.6,138.72,138.63,25.86]
[1745079519263,33.8102,138.72,138.63,25.86]
[1745079523563,26.6,138.72,138.63,25.86]
[1745079523768,25.84,138.72,138.63,25.86]
[1745079523968,25.84,138.72,138.64,3.9003]
[1745079524268,25.84,138.72,138.64,5.7792]
[1745079524462,25.84,138.72,138.65,1.3244426]
[1745079526168,25.84,138.72,138.64,5.7792]
[1745079526770,25.84,138.72,138.65,1.32442973]
[1745079526971,25.84,138.72,138.66,25.84]
[1745079527170,25.84,138.72,138.71,7.2105]
[1745079530168,25.84,138.75,138.74,7.2087]
[1745079531169,25.84,138.78,138.69,25.84]
[1745079531370,25.84,138.78,138.7,5.24412253]
[1745079531571,25.84,138.78,138.7,3.9202]
[1745079532575,25.84,138.78,138.76,7.2076]
[1745079532974,25.84,138.78,138.7,3.9202]
[1745079535976,25.84,138.78,138.71,1.32386014]
[1745079536476,25.84,138.78,138.7,3.9202]
[1745079536775,25.84,138.78,138.71,1.32386014]
[1745079536973,25.84,138.78,138.7,3.9202]
[1745079537478,25.84,138.78,138.71,1.32385102]
[1745079539579,25.84,138.78,138.7,5.8125]
[1745079539781,25.84,138.78,138.71,1.32384767]
[1745079541586,25.84,138.78,138.7,5.8125]
[1745079543077,25.84,138.78,138.71,1.32386716]
[1745079543380,25.84,138.78,138.7,3.9202]
[1745079543581,33.0471,138.78,138.7,3.9202]
[1745079545389,25.84,138.78,138.7,3.9202]
[1745079545583,25.84,138.78,138.7,5.9361]
[1745079545886,7.9584,138.85,138.71,1.32392488]
[1745079546183,7.9584,138.85,138.72,25.82]
[1745079546377,7.9584,138.85,138.73,1.32392488]
[1745079546580,7.2039,138.84,138.73,1.32392488]
[1745079547284,7.2039,138.84,138.74,1.32354519]
[1745079547483,7.2039,138.84,138.75,25.82]
[1745079548483,7.2035,138.85,138.75,25.82]
[1745079548684,26.5749,138.86,138.75,25.82]
[1745079548883,26.5749,138.86,138.76,25.82]
[1745079549085,7.2044,138.83,138.76,25.82]
[1745079549280,26.5749,138.86,138.77,25.82]
[1745079549485,26.5749,138.86,138.78,25.82]
[1745079549681,7.204,138.84,138.79,25.82]
[1745079549886,7.204,138.84,138.7,67.9361]
[1745079550186,33.7778,138.86,138.71,27.14352965]
[1745079550388,25.82,138.85,138.71,1.32352965]
[1745079550586,7.2055,138.81,138.72,27.14352965]
[1745079550888,25.82,138.8,138.73,25.82]
[1745079551080,7.2082,138.76,138.7,25.82]
[1745079552281,7.2082,138.76,138.72,7.2097]
[1745079552986,0.3337,138.79,138.7,25.82]
[1745079553886,7.2076,138.77,138.74,7.2087]
[1745079554586,7.2076,138.77,138.75,7.2084]
[1745079554986,7.2071,138.78,138.75,7.2084]
[1745079556792,7.2074,138.77,138.74,7.2087]
[1745079557089,16.13944476,138.77,138.74,7.2087]
[1745079558185,7.2083,138.76,138.73,7.2094]
[1745079558389,8.93204476,138.75,138.71,8.93204476]
[1745079558590,8.93204476,138.75,138.7,25.82]
[1745079558786,8.93204476,138.75,138.73,7.2095]
[1745079558985,16.14084476,138.75,138.7,25.82]
[1745079559489,16.14084476,138.75,138.72,7.2097]
[1745079560188,8.93204476,138.75,138.7,25.82]
[1745079560892,8.93204476,138.75,138.69,8.93204476]
[1745079561188,8.93204476,138.75,138.7,25.82]
[1745079561388,16.14054476,138.75,138.72,7.2097]
[1745079565195,8.93204476,138.75,138.72,7.2097]
[1745079565493,8.93204476,138.75,138.73,7.2095]
[1745079566095,7.2076,138.77,138.74,7.2087]
[1745079566293,8.93204476,138.79,138.73,34.75204476]
[1745079566493,8.93204476,138.79,138.74,25.82]
[1745079567397,8.93204476,138.79,138.77,7.2074]
[1745079567597,8.93204476,138.79,138.74,25.82]
[1745079569394,16.13874476,138.79,138.74,25.82]
[1745079569599,8.93204476,138.79,138.74,25.82]
[1745079570094,34.75204476,138.8,138.75,8.93204476]
[1745079570298,8.93204476,138.8,138.75,8.93204476]
[1745079570601,8.93204476,138.82,138.77,8.93204476]
[1745079570997,16.13724476,138.82,138.77,34.75204476]
[1745079571302,34.75204476,138.83,138.77,34.75204476]
[1745079571500,41.95664476,138.83,138.77,34.75204476]
[1745079572002,16.13664476,138.83,138.77,34.75204476]
[1745079572698,25.82,138.86,138.77,34.75204476]
[1745079573003,25.82,138.86,138.81,8.93204476]
[1745079573196,8.93204476,138.89,138.83,8.93204476]
[1745079573397,8.93204476,138.89,138.84,25.82]
[1745079573799,16.13354476,138.89,138.84,25.82]
[1745079574604,1.0885,138.92,138.85,8.93204476]
[1745079574992,8.93204476,138.91,138.85,8.93204476]
[1745079575196,8.93204476,138.91,138.84,25.82]
[1745079575197,1.0885,138.92,138.84,25.82]
[1745079575701,7.2007,138.9,138.84,25.82]
[1745079575902,7.2007,138.9,138.84,596.36]
[1745079577805,7.2015,138.89,138.84,596.36]
[1745079578105,13.92867923,138.91,138.84,596.36]
[1745079579902,7.2021,138.88,138.84,596.36]
[1745079582104,7.2023,138.87,138.84,596.36]
[1745079582408,13.92867923,138.89,138.84,596.36]
[1745079582707,13.92867923,138.89,138.85,25.8]
[1745079582908,13.92867923,138.89,138.84,570.54]
[1745079583101,7.2027,138.86,138.85,25.8]
[1745079584807,7.2025,138.87,138.85,25.8]
[1745079585105,13.92867923,138.89,138.84,577.7437]
[1745079585501,13.92867923,138.89,138.84,603.5437]
[1745079585707,7.2026,138.87,138.84,603.5437]
[1745079588310,7.2026,138.87,138.84,577.7437]
[1745079588509,7.2026,138.87,138.84,603.5437]
[1745079589413,7.2026,138.87,138.84,577.7437]
[1745079589615,7.2026,138.87,138.84,603.5437]
[1745079589914,7.2026,138.87,138.84,577.7437]
[1745079590113,7.2026,138.87,138.84,603.5437]
[1745079590516,7.2028,138.86,138.84,603.5437]
[1745079591115,7.2024,138.87,138.84,603.5437]
[1745079591517,7.202,138.88,138.85,7.2031]
[1745079592115,7.202,138.88,138.84,596.34]
[1745079592415,7.2013,138.89,138.84,596.34]
[1745079592915,7.2013,138.89,138.86,7.2023]
[1745079593114,7.2013,138.89,138.87,25.8]
[1745079594114,7.2017,138.88,138.87,25.8]
[1745079595012,7.2013,138.89,138.87,25.8]
[1745079595213,399.72867923,138.93,138.87,25.8]
[1745079595510,7.2015,138.89,138.87,25.8]
[1745079596418,7.2009,138.9,138.87,25.8]
[1745079596614,399.72867923,138.93,138.87,25.8]
[1745079597017,399.72867923,138.93,138.87,33.0021]
[1745079597217,8.91330454,138.91,138.87,33.0021]
[1745079597518,7.201,138.9,138.87,25.8]
[1745079597810,8.91330454,138.91,138.87,25.8]
[1745079598209,7.2012,138.9,138.87,33.002]
[1745079598414,8.91330454,138.91,138.87,33.002]
[1745079598920,7.201,138.9,138.87,33.002]
[1745079599515,8.91330454,138.94,138.88,8.91330454]
[1745079599718,8.91330454,138.94,138.88,12.91340454]
[1745079600020,7.1994,138.93,138.91,7.2001]
[1745079600316,7.1994,138.93,138.91,25.8]
[1745079601017,16.11200454,138.94,138.91,25.8]
[1745079601218,7.1987,138.94,138.91,25.8]
[1745079601718,7.1987,138.94,138.91,32.9999]
[1745079602618,7.1992,138.93,138.91,25.8]
[1745079604416,25.8,138.97,138.91,25.8]
[1745079604417,360.0,139.0,138.94,7.1985]
[1745079604722,8.91330454,138.99,138.94,25.8]
[1745079605118,7.1973,138.97,138.94,32.9985]
[1745079605822,7.1976,138.96,138.94,32.9985]
[1745079606120,8.91330454,138.99,138.94,32.9985]
[1745079606322,7.1973,138.97,138.94,7.1985]
[1745079606525,7.1973,138.97,138.94,32.9785]
[1745079608828,7.1973,138.97,138.94,7.1985]
[1745079609031,7.1973,138.97,138.94,32.9785]
[1745079610230,7.1973,138.97,138.94,7.1985]
[1745079610530,7.1973,138.97,138.94,32.9785]
[1745079611934,7.1973,138.97,138.94,25.78]
[1745079613031,7.1967,138.98,138.94,34.69330454]
[1745079613530,8.91330454,138.99,138.94,34.69330454]
[1745079613729,8.91330454,138.99,138.95,25.78]
[1745079613932,360.0,139.0,138.96,8.91330454]
[1745079614231,367.1956,139.0,138.96,8.91330454]
[1745079614632,360.0,139.0,138.97,25.78]
[1745079615134,8.91330454,139.02,138.97,25.78]
[1745079615334,7.1946,139.02,138.98,25.78]
[1745079615534,7.1946,139.02,138.98,34.69330454]
[1745079615927,8.91330454,139.04,138.98,34.69330454]
[1745079616131,385.78,139.08,139.0,8.91330454]
[1745079616328,7.1934,139.05,139.02,7.1944]
[1745079616630,7.1934,139.05,139.02,32.9744]
[1745079617140,7.1939,139.03,139.01,7.1949]
[1745079617434,7.1939,139.03,139.01,32.9749]
[1745079617636,8.91330454,139.05,139.01,32.9749]
[1745079617831,385.78,139.08,139.01,32.9749]
[1745079617832,385.78,139.08,139.01,25.78]
[1745079618028,8.91330454,139.07,139.01,25.78]
[1745079618434,8.91330454,139.07,139.02,8.91330454]
[1745079618839,8.91330454,139.05,139.0,8.91330454]
[1745079619039,8.91330454,139.05,139.02,25.78]
[1745079619539,8.91330454,139.05,139.01,25.78]
[1745079619733,8.91330454,139.05,138.99,5.9071]
[1745079619935,8.91330454,139.05,139.0,25.78]
[1745079620133,7.1937,139.04,139.0,34.69330454]
[1745079620840,7.1937,139.04,139.0,8.91330454]
[1745079621036,8.91330454,139.03,138.99,5.9071]
[1745079621236,8.91330454,139.03,138.99,1.8808]
[1745079621942,8.91330454,139.01,138.96,8.91330454]
[1745079622139,8.91330454,138.97,138.95,2.0021]
[1745079622343,8.91330454,138.97,138.88,569.8]
[1745079622542,7.1979,138.96,138.91,8.91330454]
[1745079622742,8.91330454,138.97,138.91,8.91330454]
[1745079623042,7.1987,138.94,138.9,8.91330454]
[1745079623241,13.9202097,138.97,138.9,25.76]
[1745079623842,7.1981,138.95,138.9,25.76]
[1745079624042,13.9202097,138.97,138.9,25.76]
[1745079624241,13.9202097,138.99,138.9,25.76]
[1745079624542,25.76,139.0,138.91,13.9202097]
[1745079624944,7.1963,138.99,138.93,13.9202097]
[1745079625243,39.7002097,139.03,138.94,27.6682]
[1745079626048,7.1967,138.98,138.94,27.6682]
[1745079626741,13.9202097,139.01,138.94,1.8882]
[1745079627045,13.9202097,138.99,138.92,25.78]
[1745079627239,7.1984,138.95,138.91,25.78]
[1745079627438,39.7002097,138.97,138.89,5.8967]
[1745079627642,13.9202097,138.95,138.89,5.8967]
[1745079628846,13.9202097,138.95,138.89,4.0308]
[1745079629046,13.9202097,138.93,138.89,4.0308]
[1745079629247,7.2006,138.91,138.89,2.0021]
[1745079629846,25.78,138.94,138.89,2.0021]
[1745079630749,7.1997,138.92,138.89,2.0021]
[1745079631457,32.9788,138.94,138.89,2.0021]
[1745079631860,25.78,138.94,138.89,2.0021]
[1745079632151,7.1994,138.93,138.89,2.0021]
[1745079632546,25.78,138.94,138.89,2.0021]
[1745079632851,13.9202097,138.96,138.89,2.0021]
[1745079633048,13.9202097,138.96,138.9,1.8663]
[1745079633349,7.1982,138.95,138.9,1.8663]
[1745079633548,25.78,138.97,138.9,1.8663]
[1745079633743,25.78,138.97,138.9,3.8538]
[1745079634049,7.1981,138.95,138.9,3.8538]
[1745079634551,13.9202097,138.96,138.89,2.0021]
[1745079634750,7.1994,138.93,138.89,2.0021]
[1745079635652,13.9202097,138.96,138.89,2.0021]
[1745079636050,13.9202097,138.94,138.86,3.9182]
[1745079636250,7.2005,138.91,138.87,25.78]
[1745079636451,13.9202097,138.92,138.84,2.0113]
[1745079636653,7.2007,138.9,138.85,25.78]
[1745079636850,25.78,138.91,138.84,2.0113]
[1745079637752,7.2012,138.89,138.84,27.7913]
[1745079638352,7.2012,138.89,138.86,7.2024]
[1745079638653,25.78,138.91,138.83,595.58]
[1745079638852,25.78,138.91,138.87,7.2021]
[1745079639051,7.2012,138.89,138.84,2.0113]
[1745079639252,25.78,138.91,138.84,2.0113]
[1745079639451,25.78,138.91,138.87,7.2021]
[1745079639651,7.2009,138.9,138.87,7.2021]
[1745079639954,25.78,138.91,138.87,7.2021]
[1745079640158,25.78,138.91,138.84,2.0113]
[1745079640755,7.2009,138.9,138.87,7.202]
[1745079640953,25.78,138.91,138.84,2.0113]
[1745079641355,7.2015,138.89,138.86,7.2024]
[1745079641848,25.78,138.91,138.84,2.0113]
[1745079642155,7.2012,138.89,138.85,7.203]
[1745079642356,25.78,138.91,138.85,7.203]
[1745079642657,25.78,138.91,138.86,7.2027]
[1745079642854,25.78,138.91,138.84,2.0113]
[1745079643156,32.9804,138.91,138.88,7.2014]
[1745079644157,32.9804,138.91,138.89,7.2012]
[1745079644451,7.2007,138.9,138.84,2.0113]
[1745079645056,32.9803,138.91,138.88,7.2014]
[1745079646356,25.78,138.91,138.89,7.2011]
[1745079646556,7.1997,138.92,138.84,2.0113]
[1745079646756,7.1997,138.92,138.86,25.78]
[1745079647059,7.1997,138.92,138.89,7.2009]
[1745079648358,7.2002,138.91,138.89,7.2009]
[1745079648656,7.2002,138.91,138.86,25.78]
[1745079648958,7.2002,138.91,138.88,7.2014]
[1745079649253,7.2002,138.91,138.86,25.78]
[1745079649557,7.2002,138.91,138.88,7.2012]
[1745079650360,7.2002,138.91,138.89,7.2011]
[1745079650859,7.2008,138.9,138.87,7.2019]
[1745079651061,13.9202097,138.92,138.85,25.8]
[1745079651360,7.201,138.9,138.85,25.8]
[1745079651565,7.201,138.9,138.87,7.202]
[1745079651764,7.201,138.9,138.85,25.8]
[1745079651963,39.7002097,138.94,138.89,7.2009]
[1745079652461,7.1999,138.92,138.89,7.2009]
[1745079655161,7.2002,138.91,138.89,7.2009]
[1745079655361,7.2002,138.91,138.88,7.2014]
[1745079656164,39.7002097,138.94,138.87,7.202]
[1745079656760,7.2009,138.9,138.87,7.202]
[1745079657565,7.2012,138.89,138.86,7.2025]
[1745079657858,7.2012,138.89,138.85,25.8]
[1745079658559,7.2009,138.9,138.87,7.2019]
[1745079658764,39.7002097,138.94,138.85,25.8]
[1745079659068,25.78,138.94,138.85,39.7202097]
[1745079659261,25.8,138.97,138.89,13.9202097]
[1745079659462,25.8,138.97,138.9,4.0121]
[1745079659762,7.1979,138.96,138.9,5.8545]
[1745079660065,25.8,138.97,138.92,7.1992]
[1745079660264,7.1982,138.95,138.92,7.1992]
[1745079660965,7.1978,138.96,138.93,7.199]
[1745079661160,7.1978,138.96,138.9,5.8545]
[1745079661362,25.8,138.97,138.9,5.8545]
[1745079661666,7.1981,138.95,138.92,7.1992]
[1745079662362,39.7202097,138.94,138.87,7.202]
[1745079662565,13.9202097,138.92,138.87,7.202]
[1745079662869,7.2008,138.9,138.87,7.202]
[1745079663161,13.9202097,138.92,138.84,2.0364]
[1745079663368,7.2011,138.9,138.84,2.0364]
[1745079664161,13.9202097,138.92,138.84,2.0364]
[1745079664162,7.2012,138.89,138.84,2.0364]
[1745079666572,7.2009,138.9,138.84,2.0364]
[1745079667174,7.2009,138.9,138.87,7.2019]
[1745079668775,7.2009,138.9,138.88,7.2016]
[1745079668976,7.2009,138.9,138.84,2.0364]
[1745079669475,7.2009,138.9,138.87,7.2019]
[1745079670376,7.2012,138.89,138.87,7.2019]
[1745079670577,13.9202097,138.92,138.84,2.0364]
[1745079670778,25.8,138.91,138.84,2.0364]
[1745079671074,7.2015,138.89,138.86,7.2027]
[1745079672478,7.2018,138.88,138.86,7.2027]
[1745079673478,7.2018,138.88,138.85,7.203]
[1745079674179,7.2014,138.89,138.86,7.2027]
[1745079675580,7.2018,138.88,138.86,7.2027]
[1745079676083,25.8,138.91,138.86,7.2027]
[1745079676882,7.2016,138.89,138.86,7.2027]
[1745079677485,7.2018,138.88,138.86,7.2027]
[1745079678081,7.2014,138.89,138.87,7.2021]
[1745079679185,16.11671171,138.89,138.87,7.2021]
[1745079679683,7.2017,138.88,138.86,7.2025]
[1745079680780,16.11681171,138.89,138.86,7.2025]
[1745079681086,16.11681171,138.89,138.87,7.2021]
[1745079681383,7.2018,138.88,138.86,7.2026]
[1745079681783,8.91531171,138.89,138.86,7.2026]
[1745079681984,16.11671171,138.89,138.86,7.2023]
[1745079683682,16.11671171,138.89,138.87,7.2022]
[1745079685286,16.11671171,138.89,138.86,7.2025]
[1745079685987,16.11671171,138.89,138.87,7.2021]
[1745079688987,16.11671171,138.89,138.86,7.2025]
[1745079689189,7.2018,138.88,138.86,7.2025]
[1745079689390,8.91531171,138.89,138.86,7.2025]
[1745079689886,7.202,138.88,138.84,10.95171171]
[1745079690489,6.45597878,138.87,138.84,2.0364]
[1745079690986,13.65847878,138.87,138.84,2.0364]
[1745079691191,13.65847878,138.87,138.85,7.203]
[1745079693397,7.2027,138.86,138.84,9.24]
[1745079694394,7.2027,138.86,138.84,7.2036]
[1745079694693,6.45597878,138.87,138.84,7.2036]
[1745079694694,13.65847878,138.87,138.84,7.2036]
[1745079695094,13.65847878,138.87,138.85,7.2033]
[1745079696900,13.65847878,138.87,138.84,7.2035]
[1745079698697,13.65847878,138.87,138.85,7.2032]
[1745079700299,13.65847878,138.87,138.84,7.2035]
[1745079700600,13.65847878,138.87,138.83,2.0385]
[1745079700898,13.65847878,138.87,138.84,7.2037]
[1745079701902,13.65847878,138.87,138.85,7.2031]
[1745079707402,6.45597878,138.87,138.85,7.2031]
[1745079707604,7.2019,138.88,138.85,7.2031]
[1745079708306,16.11661171,138.89,138.84,8.91531171]
[1745079708805,16.11661171,138.89,138.86,7.2022]
[1745079709406,16.11661171,138.89,138.87,7.2022]
[1745079710506,34.71531171,138.91,138.88,7.2017]
[1745079711107,34.71531171,138.91,138.84,34.71531171]
[1745079711406,34.71531171,138.91,138.84,34.69531171]
[1745079711706,8.91531171,138.89,138.84,34.69531171]
[1745079712710,16.11691171,138.89,138.86,7.2024]
[1745079715708,7.2017,138.88,138.86,7.2024]
[1745079718410,16.11671171,138.89,138.86,7.2024]
[1745079720013,8.91531171,138.92,138.86,8.91531171]
[1745079720212,8.91531171,138.93,138.88,8.91531171]
[1745079720413,25.78,138.94,138.88,8.91531171]
[1745079720713,8.91531171,138.95,138.9,8.91531171]
[1745079720911,8.91531171,138.95,138.9,34.69531171]
[1745079721213,8.91531171,138.95,138.92,7.1994]
[1745079721515,8.91531171,138.95,138.9,25.78]
[1745079721715,7.1994,138.93,138.91,7.2001]
[1745079722212,8.91531171,138.95,138.91,7.2001]
[1745079722413,7.1989,138.94,138.91,7.2001]
[1745079724314,7.1989,138.94,138.92,7.1996]
[1745079724612,7.1992,138.93,138.9,25.78]
[1745079725812,7.1992,138.93,138.91,7.1998]
[1745079726014,7.1988,138.94,138.91,7.1998]
[1745079726313,7.1988,138.94,138.91,7.2]
[1745079728815,7.1988,138.94,138.92,7.1995]
[1745079729814,7.1988,138.94,138.91,7.1999]
[1745079730009,7.1996,138.92,138.89,8.91531171]
[1745079730314,7.1996,138.92,138.89,7.2008]
[1745079730516,8.91531171,138.93,138.89,7.2008]
[1745079730915,7.2003,138.91,138.89,7.2008]
[1745079731114,8.91531171,138.91,138.86,25.78]
[1745079731320,8.91531171,138.91,138.84,8.91531171]
[1745079731321,8.91531171,138.87,138.83,3.958]
[1745079731514,8.91531171,138.85,138.83,3.958]
[1745079731716,8.91531171,138.85,138.79,27.6226]
[1745079731914,7.2039,138.84,138.79,36.53791171]
[1745079732418,7.2039,138.84,138.81,8.91531171]
[1745079732618,7.2039,138.84,138.79,27.6226]
[1745079732619,7.2039,138.84,138.79,36.53791171]
[1745079733118,8.91531171,138.83,138.79,27.6226]
[1745079733418,16.11881171,138.85,138.79,36.53791171]
[1745079733819,8.91531171,138.87,138.81,8.91531171]
[1745079734520,25.78,138.88,138.83,8.91531171]
[1745079735118,25.78,138.88,138.86,7.2027]
[1745079736922,34.69531171,138.91,138.85,8.91531171]
[1745079737321,25.78,138.91,138.87,8.91531171]
[1745079737720,7.1998,138.92,138.89,7.2008]
[1745079738921,7.2002,138.91,138.89,7.2008]
[1745079740523,7.2002,138.91,138.88,7.2015]
[1745079741025,7.2002,138.91,138.89,7.2011]
[1745079743922,7.2002,138.91,138.88,7.2015]
[1745079750027,8.91531171,138.93,138.87,16.11731171]
[1745079750227,8.91531171,138.91,138.85,34.69531171]
[1745079750525,34.69531171,138.91,138.85,34.69531171]
[1745079750728,7.2015,138.89,138.85,34.69531171]
[1745079752428,7.2017,138.88,138.85,34.69531171]
[1745079752628,7.2017,138.88,138.85,25.78]
[1745079753229,16.11671171,138.89,138.85,25.78]
[1745079753827,7.2017,138.88,138.85,25.78]
[1745079754828,16.11671171,138.89,138.85,25.78]
[1745079755532,7.2014,138.89,138.85,25.78]
[1745079760334,8.91531171,138.88,138.85,25.78]
[1745079760536,8.91531171,138.88,138.83,1.8976]
[1745079761535,16.11721171,138.88,138.83,1.8976]
[1745079765335,7.2019,138.88,138.83,1.8976]
[1745079765536,7.2012,138.89,138.84,8.91531171]
[1745079769540,8.91531171,138.9,138.84,8.91531171]
[1745079769736,25.78,138.91,138.86,8.91531171]
[1745079770236,32.9805,138.91,138.86,8.91531171]
[1745079770436,25.78,138.91,138.86,8.91531171]
[1745079771540,7.2008,138.9,138.86,8.91531171]
[1745079772036,25.78,138.91,138.86,8.91531171]
[1745079772440,32.9806,138.91,138.86,8.91531171]
[1745079773438,8.91531171,138.92,138.85,25.78]
[1745079773439,8.91531171,138.93,138.88,8.91531171]
[1745079773840,16.11471171,138.93,138.88,8.91531171]
[1745079774340,7.1997,138.92,138.88,8.91531171]
[1745079781043,16.11471171,138.93,138.88,8.91531171]
[1745079781844,7.1996,138.92,138.88,8.91531171]
[1745079782443,25.78,138.94,138.9,8.91531171]
[1745079782644,8.91531171,138.96,138.92,8.91531171]
[1745079782946,25.76,138.97,138.92,8.91531171]
[1745079783245,7.1978,138.96,138.92,8.91531171]
[1745079785549,7.1982,138.95,138.92,8.91531171]
[1745079786040,7.1988,138.94,138.9,8.91531171]
[1745079786246,8.91531171,138.93,138.89,3.8728]
[1745079786645,7.1997,138.92,138.89,1.8812]
[1745079786845,8.91531171,138.93,138.89,1.8812]
[1745079788045,16.11471171,138.93,138.89,1.8812]
[1745079790151,7.1996,138.92,138.88,8.91531171]
[1745079790351,8.91531171,138.93,138.88,8.91531171]
[1745079791358,7.2,138.92,138.88,8.91531171]
[1745079793055,16.11471171,138.93,138.88,8.91531171]
[1745079795657,7.1997,138.92,138.88,8.91531171]
[1745079797456,16.11471171,138.93,138.88,8.91531171]
[1745079798256,7.1994,138.93,138.88,8.91531171]
[1745079798854,34.67531171,138.94,138.88,8.91531171]
[1745079799063,25.76,138.94,138.9,8.91531171]
[1745079799760,32.959,138.94,138.9,8.91531171]
[1745079802057,7.1992,138.93,138.9,8.91531171]
[1745079804463,32.9588,138.94,138.9,8.91531171]
[1745079804670,25.76,138.94,138.9,8.91531171]
[1745079805465,32.9586,138.94,138.9,8.91531171]
[1745079806769,7.1994,138.93,138.88,8.91531171]
[1745079806969,34.67531171,138.94,138.88,8.91531171]
[1745079807270,7.1994,138.93,138.88,8.91531171]
[1745079807869,34.67531171,138.94,138.88,8.91531171]
[1745079808970,7.1997,138.92,138.88,8.91531171]
[1745079809766,7.2002,138.91,138.87,4.0091]
[1745079809970,7.2002,138.91,138.86,34.67531171]
[1745079811173,7.2002,138.91,138.86,25.76]
[1745079811367,7.2007,138.9,138.86,25.76]
[1745079811581,8.91531171,138.92,138.86,25.76]
[1745079811872,16.11531171,138.92,138.86,25.76]
[1745079812076,16.11531171,138.92,138.85,34.67531171]
[1745079812571,16.11531171,138.92,138.87,8.91531171]
[1745079813367,7.2002,138.91,138.87,8.91531171]
[1745079815274,8.91531171,138.92,138.86,8.91531171]
[1745079815472,25.76,138.91,138.83,34.67531171]
[1745079815670,8.91531171,138.86,138.82,1.9288]
[1745079816475,7.2025,138.87,138.82,1.9288]
[1745079816873,8.91531171,138.86,138.83,7.2038]
[1745079817268,8.91531171,138.86,138.82,1.9288]
[1745079817474,8.91531171,138.86,138.84,7.2036]
[1745079817976,34.67531171,138.88,138.85,7.2033]
[1745079818175,25.76,138.88,138.85,8.91531171]
[1745079818365,25.76,138.91,138.87,8.91531171]
[1745079818568,16.11511171,138.92,138.87,8.91531171]
[1745079818875,604.75531171,138.94,138.87,8.91531171]
[1745079819075,611.95431171,138.94,138.91,7.2002]
[1745079819274,604.75531171,138.94,138.91,7.2002]
[1745079820276,7.1992,138.93,138.91,7.2002]
[1745079820677,7.1992,138.93,138.9,7.2004]
[1745079821278,611.95411171,138.94,138.91,7.2001]
[1745079821883,7.1991,138.93,138.91,7.2001]
[1745079822180,604.75531171,138.94,138.91,7.2001]
[1745079822578,7.1993,138.93,138.91,7.2001]
[1745079822877,7.1993,138.93,138.9,7.2004]
[1745079823878,611.95411171,138.94,138.91,7.2001]
[1745079825280,7.1992,138.93,138.91,7.2001]
[1745079827585,611.95421171,138.94,138.91,7.2001]
[1745079829683,41.87421171,138.94,138.91,7.2001]
[1745079832087,7.1991,138.93,138.91,7.2001]
[1745079832287,34.67531171,138.94,138.91,7.2001]
[1745079833189,41.87421171,138.94,138.91,7.2001]
[1745079835187,34.67531171,138.94,138.92,7.1996]
[1745079836590,41.87401171,138.94,138.91,7.1999]
[1745079839189,7.1992,138.93,138.91,7.1999]
[1745079840494,41.87421171,138.94,138.91,7.1999]
[1745079840792,34.67531171,138.94,138.91,7.1999]
[1745079842297,7.1991,138.93,138.91,7.1999]
[1745079843502,3.9329,139.02,138.91,34.65531171]
[1745079843695,8.91531171,138.99,138.93,8.91531171]
[1745079844197,7.1963,138.99,138.96,7.1973]
[1745079845701,16.11211171,138.98,138.95,7.198]
[1745079846600,16.11211171,138.98,138.96,7.1976]
[1745079847002,8.91531171,138.98,138.96,7.1976]
[1745079848003,16.11101171,139.0,138.97,7.197]
[1745079848502,16.11101171,139.0,138.96,7.1972]
[1745079848503,7.1962,138.99,138.96,7.1972]
[1745079851203,16.11151171,138.99,138.96,7.1972]
[1745079853706,25.74,139.01,138.92,5.7916]
[1745079853707,8.91531171,139.0,138.95,8.91531171]
[1745079854011,34.65531171,139.01,138.95,8.91531171]
[1745079854211,41.85061171,139.01,138.95,8.91531171]